fUST/lending_fUST_20250702
["ID","MTS","AMOUNT","RATE_DAILY","PERIOD"]
[369056208,1751446269343,-480.43443942,0.00019726,2]
[369056209,1751446269352,-460.0,0.00019726,2]
[369056210,1751446269361,-460.0,0.00019726,2]
[369056211,1751446269371,-464.28,0.00019726,2]
[369056212,1751446269380,-727.14,0.00019726,2]
[369056213,1751446269389,-2275.66,0.00019726,2]
[369056214,1751446269399,-460.0,0.00019726,2]
[369056215,1751446269409,-460.0,0.00019726,2]
[369056216,1751446269419,-538.53,0.00019726,2]
[369056217,1751446269428,-532.83,0.00019726,2]
[369056218,1751446269438,-4977.12,0.00019726,2]
[369056219,1751446269447,-968.78,0.00019726,2]
[369056220,1751446269457,-2351.0,0.00019827,2]
[369056221,1751446269467,-2415.229899,0.0001986,2]
[369056222,1751446269477,-1113.151645,0.00019867,2]
[369056223,1751446269486,-212.47393031,0.000199,2]
[369056224,1751446269495,-988.0,0.00019916,2]
[369056225,1751446269505,-460.0,0.0002,2]
[369056226,1751446269514,-151.0,0.0002,2]
[369056227,1751446269523,-151.0,0.0002,2]
[369056228,1751446269533,-157.409072,0.0002,2]
[369056229,1751446269542,-157.409072,0.0002,2]
[369056230,1751446269551,-460.0,0.0002,2]
[369056231,1751446269560,-460.0,0.0002,2]
[369056232,1751446269569,-601.93,0.0002,2]
[369056233,1751446269579,-460.0,0.0002,2]
[369056234,1751446269588,-151.0,0.0002,2]
[369056235,1751446269597,-151.0,0.0002,2]
[369056236,1751446269606,-460.0,0.0002,2]
[369056237,1751446269616,-151.0,0.0002,2]
[369056238,1751446269625,-151.0,0.0002,2]
[369056239,1751446269635,-151.0,0.0002,2]
[369056240,1751446269643,-256.953264,0.0002,2]
[369056241,1751446269653,-256.953264,0.0002,2]
[369056242,1751446269662,-567.8,0.0002,2]
[369056243,1751446269672,-976.991429,0.0002,2]
[369056244,1751446269681,-675.62,0.0002,2]
[369056245,1751446269690,-976.991429,0.0002,2]
[369056246,1751446269699,-151.0,0.0002,2]
[369056247,1751446269709,-479.3,0.0002,2]
[369056248,1751446269718,-719.27,0.0002,2]
[369056249,1751446269728,-460.0,0.0002,2]
[369056250,1751446269737,-759.71,0.0002,2]
[369056251,1751446269746,-931.62,0.0002,2]
[369056252,1751446269757,-277.32477786,0.0002,2]
[369056253,1751446269771,-460.0,0.0002,2]
[369056254,1751446269780,-617.48,0.0002,2]
[369056255,1751446269789,-169.03737682,0.0002,2]
[369056256,1751446269800,-468.31,0.0002,2]
[369056257,1751446269810,-460.0,0.0002,2]
[369056258,1751446269819,-300.0,0.0002,2]
[369056259,1751446269828,-1058.65,0.0002,2]
[369056260,1751446269839,-460.0,0.0002,2]
[369056261,1751446269850,-460.0,0.0002,2]
[369056262,1751446269860,-1050.38,0.0002,2]
[369056263,1751446269981,-495.59706941,0.0002,2]
[369056264,1751446269990,-460.0,0.0002,2]
[369056265,1751446269999,-460.0,0.0002,2]
[369056266,1751446270009,-1020.41,0.0002,2]
[369056267,1751446270018,-460.0,0.0002,2]
[369056268,1751446270027,-936.85,0.0002,2]
[369056269,1751446270037,-386.85854873,0.0002,2]
[369056270,1751446270046,-492.08,0.0002,2]
[369056271,1751446270055,-460.0,0.0002,2]
[369056272,1751446270063,-460.0,0.0002,2]
[369056273,1751446270072,-713.77,0.0002,2]
[369056274,1751446270082,-460.0,0.0002,2]
[369056275,1751446270091,-1984.15,0.0002,2]
[369056276,1751446270100,-639.15,0.0002,2]
[369056277,1751446270110,-510.56,0.0002,2]
[369056278,1751446270119,-1341.06,0.0002,2]
[369056279,1751446270128,-1965.29,0.0002,2]
[369056280,1751446270138,-1463.66,0.0002,2]
[369056281,1751446270148,-588.79,0.0002,2]
[369056282,1751446270157,-460.0,0.0002,2]
[369056283,1751446270166,-705.4,0.0002,2]
[369056284,1751446270176,-1283.86,0.0002,2]
[369056285,1751446270186,-460.0,0.0002,2]
[369056286,1751446270195,-1651.96,0.0002,2]
[369056287,1751446270204,-288.5984559,0.0002,2]
[369056288,1751446270213,-3551.5,0.0002,2]
[369056289,1751446270223,-715.93,0.0002,2]
[369056290,1751446270233,-605.18,0.0002,2]
[369056291,1751446270242,-5373.03,0.0002,2]
[369056292,1751446270251,-1188.97,0.0002,2]
[369056293,1751446270261,-3210.9,0.0002,2]
[369056294,1751446270276,-855.64,0.0002,2]
[369056295,1751446270285,-741.32,0.0002,2]
[369056296,1751446270295,-1028.23,0.0002,2]
[369056297,1751446270305,-460.0,0.0002,2]
[369056298,1751446270315,-1054.53,0.0002,2]
[369056299,1751446270325,-704.86,0.0002,2]
[369056300,1751446270334,-460.0,0.0002,2]
[369056301,1751446270344,-1640.39,0.0002,2]
[369056302,1751446270354,-460.0,0.0002,2]
[369056303,1751446270363,-460.0,0.0002,2]
[369056304,1751446270373,-849.27,0.0002,2]
[369056305,1751446270382,-519.86,0.0002,2]
[369056306,1751446270392,-699.08,0.0002,2]
[369056307,1751446270402,-1667.26,0.0002,2]
[369056308,1751446270412,-2824.0,0.0002,2]
[369056309,1751446270423,-521.36,0.0002,2]
[369056310,1751446270432,-460.0,0.0002,2]
[369056311,1751446270442,-1066.36,0.0002,2]
[369056312,1751446270452,-829.75,0.0002,2]
[369056313,1751446270461,-240.9084764,0.0002,2]
[369056314,1751446270471,-843.41,0.0002,2]
[369056315,1751446270481,-499.94,0.0002,2]
[369056316,1751446270490,-1075.58,0.0002,2]
[369056317,1751446270500,-513.23,0.0002,2]
[369056318,1751446270509,-2881.49,0.0002,2]
[369056319,1751446270518,-889.55,0.0002,2]
[369056320,1751446270528,-594.93,0.0002,2]
[369056321,1751446270537,-460.0,0.0002,2]
[369056322,1751446270547,-634.33,0.0002,2]
[369056323,1751446270557,-3374.99,0.0002,2]
[369056324,1751446270567,-1273.46,0.0002,2]
[369056325,1751446270576,-460.0,0.0002,2]
[369056326,1751446270586,-460.0,0.0002,2]
[369056327,1751446270595,-460.0,0.0002,2]
[369056328,1751446270604,-844.65,0.0002,2]
[369056329,1751446270614,-599.35,0.0002,2]
[369056330,1751446270623,-789.41,0.0002,2]
[369056331,1751446270633,-976.59,0.0002,2]
[369056332,1751446270643,-499.71587485,0.0002,2]
[369056333,1751446271269,-1687.23412515,0.0002,2]
[369056334,1751446271280,-477.24959658,0.0002,2]
[369056335,1751446271647,-460.0,0.00016712,2]
[369056336,1751446271656,-382.27040342,0.0002,2]
[369056337,1751446271665,-510.53,0.0002,2]
[369056338,1751446271675,-878.11,0.0002,2]
[369056339,1751446271684,-464.97714263,0.0002,2]
[369056340,1751446271956,-460.0,0.00016438,2]
[369056341,1751446271966,-460.0,0.00016438,2]
[369056342,1751446271975,-461.12419687,0.00016712,2]
[369056343,1751446271984,-460.0,0.00016712,2]
[369056344,1751446271994,-460.0,0.00016986,2]
[369056345,1751446272003,-460.0,0.00016986,2]
[369056346,1751446272013,-460.0,0.0001726,2]
[369056347,1751446272023,-460.0,0.0001726,2]
[369056348,1751446272032,-460.0,0.0001726,2]
[369056349,1751446272042,-833.75,0.00017534,2]
[369056350,1751446272051,-551.01435286,0.00017534,2]
[369056351,1751446272060,-590.65606824,0.00017534,2]
[369056352,1751446272071,-833.75,0.00017808,2]
[369056353,1751446272080,-325.29365283,0.00018082,2]
[369056354,1751446272344,-77.92270405,0.00016438,2]
[369056355,1751446272587,-293.00176164,0.00016438,2]
[369056356,1751446272598,-89.07553431,0.00016438,2]
[369056357,1751446272607,-460.0,0.00016438,2]
[369056358,1751446272617,-500.0,0.00016438,2]
[369056359,1751446272626,-500.0,0.00016438,2]
[369056360,1751446272635,-500.0,0.00016438,2]
[369056361,1751446272645,-500.0,0.00016438,2]
[369056362,1751446272654,-500.0,0.00016438,2]
[369056363,1751446272663,-500.0,0.00016438,2]
[369056364,1751446272672,-460.0,0.00016712,2]
[369056365,1751446272681,-460.0,0.00016712,2]
[369056366,1751446272690,-460.0,0.00016986,2]
[369056367,1751446272699,-460.0,0.00016986,2]
[369056368,1751446272709,-460.0,0.0001726,2]
[369056369,1751446272718,-460.0,0.0001726,2]
[369056370,1751446272727,-365.46603921,0.00017534,2]
[369056371,1751446272739,-94.53396079,0.00017534,2]
[369056372,1751446272749,-460.0,0.00017534,2]
[369056373,1751446272761,-460.0,0.00017534,2]
[369056374,1751446272772,-460.0,0.00017808,2]
[369056375,1751446272782,-305.06,0.00017808,2]
[369056376,1751446272792,-460.0,0.00017808,2]
[369056377,1751446272802,-508.45634717,0.00018082,2]
[369056378,1751446272812,-460.0,0.00018082,2]
[369056379,1751446272821,-833.75,0.00018356,2]
[369056380,1751446272832,-362.25,0.00018356,2]
[369056381,1751446272843,-833.75,0.0001863,2]
[369056382,1751446272854,-736.48,0.00018904,2]
[369056383,1751446272864,-833.75,0.00018904,2]
[369056384,1751446272873,-736.48,0.00019178,2]
[369056385,1751446272883,-833.75,0.00019178,2]
[369056386,1751446272894,-736.48,0.00019452,2]
[369056387,1751446272904,-833.75,0.00019452,2]
[369056388,1751446272915,-736.48,0.00019726,2]
[369056389,1751446272925,-833.75,0.00019726,2]
[369056390,1751446272935,-355.77285737,0.0002,2]
[369056391,1751446272944,-6607.59,0.0002,2]
[369056392,1751446272954,-460.0,0.0002,2]
[369056393,1751446272963,-460.0,0.0002,2]
[369056394,1751446272973,-821.71,0.0002,2]
[369056395,1751446272982,-1821.34,0.0002,2]
[369056396,1751446272992,-151.0,0.0002,2]
[369056397,1751446273001,-460.0,0.0002,2]
[369056398,1751446273010,-460.0,0.0002,2]
[369056399,1751446273019,-151.0,0.0002,2]
[369056400,1751446273029,-464.28,0.0002,2]
[369056401,1751446273038,-727.14,0.0002,2]
[369056402,1751446273047,-2275.66,0.0002,2]
[369056403,1751446273057,-460.0,0.0002,2]
[369056404,1751446273066,-460.0,0.0002,2]
[369056405,1751446273075,-538.53,0.0002,2]
[369056406,1751446273085,-532.83,0.0002,2]
[369056407,1751446273094,-4977.12,0.0002,2]
[369056408,1751446273103,-968.78,0.0002,2]
[369056409,1751446273113,-736.48,0.0002,2]
[369056410,1751446273122,-833.75,0.0002,2]
[369056411,1751446273131,-490.7,0.00020022,3]
[369056412,1751446273141,-988.0,0.00020029,2]
[369056413,1751446273150,-988.0,0.00020042,2]
[369056414,1751446273160,-2415.229899,0.0002005,2]
[369056415,1751446273169,-499.13021321,0.00020071,2]
[369056416,1751446273179,-603.00818122,0.00020179,2]
[369056417,1751446273188,-429.98554735,0.00020179,2]
[369056418,1751446273197,-151.0,0.00020273,2]
[369056419,1751446273206,-151.0,0.00020273,2]
[369056420,1751446273215,-105.44134428,0.00020273,2]
[369056421,1751446273730,-500.0,0.00016438,2]
[369056422,1751446273740,-500.0,0.00016438,2]
[369056423,1751446273749,-460.0,0.00016438,2]
[369056424,1751446273763,-500.0,0.00016438,2]
[369056425,1751446273773,-500.0,0.00016438,2]
[369056426,1751446273783,-500.0,0.00016438,2]
[369056427,1751446273792,-500.0,0.00016438,2]
[369056428,1751446273803,-500.0,0.00016438,2]
[369056429,1751446273813,-500.0,0.00016438,2]
[369056430,1751446273823,-460.0,0.00016438,2]
[369056431,1751446273834,-200.1918994,0.00016438,2]
[369056432,1751446273848,-299.8081006,0.00016438,2]
[369056433,1751446273857,-500.0,0.00016438,2]
[369056434,1751446273867,-460.0,0.00016438,2]
[369056435,1751446273877,-623.24349879,0.00016438,2]
[369056436,1751446273886,-584.65356487,0.00016712,2]
[369056437,1751446273895,-460.0,0.00016712,2]
[369056438,1751446273904,-460.0,0.00016986,2]
[369056439,1751446273914,-460.0,0.00018082,2]
[369056440,1751446273924,-460.0,0.00018356,2]
[369056441,1751446273933,-460.0,0.0001863,2]
[369056442,1751446273942,-460.0,0.00018904,2]
[369056443,1751446273951,-460.0,0.00019178,2]
[369056444,1751446273961,-460.0,0.00019452,2]
[369056445,1751446273970,-456.41080423,0.00019726,2]
[369056446,1751446273982,-3.58919577,0.00019726,2]
[369056447,1751446273992,-392.66669137,0.0002,2]
[369056448,1751446274005,-45.55865572,0.00020273,2]
[369056449,1751446274016,-151.0,0.00020273,2]
[369056450,1751446274025,-76.31380998,0.00020273,2]
[369056451,1751446274046,-460.0,0.00016438,2]
[369056452,1751446274056,-460.0,0.0001726,2]
[369056453,1751446274065,-202.44791936,0.00020273,2]
[369056454,1751446274077,-181.23827066,0.00020273,2]
[369056455,1751446274087,-460.0,0.00020273,2]
[369056456,1751446274096,-151.0,0.00020273,2]
[369056457,1751446274105,-601.93,0.00020273,2]
[369056458,1751446274115,-460.0,0.00020273,2]
[369056459,1751446274124,-500.0,0.00020273,2]
[369056460,1751446274134,-500.0,0.00020273,2]
[369056461,1751446274144,-500.0,0.00020273,2]
[369056462,1751446274154,-501.12227595,0.00020273,2]
[369056463,1751446274164,-460.0,0.00020273,2]
[369056464,1751446274173,-567.8,0.00020273,2]
[369056465,1751446274184,-479.3,0.00020273,2]
[369056466,1751446274193,-719.27,0.00020273,2]
[369056467,1751446274202,-151.0,0.00020273,2]
[369056468,1751446274211,-460.0,0.00020273,2]
[369056469,1751446274221,-152.737831,0.00020273,2]
[369056470,1751446274231,-307.43615431,0.00020273,2]
[369056471,1751446274977,5000.0,0.000163,2]
[369056472,1751446277553,156.6373356,7.5e-07,2]
[369056473,1751446277654,156.6373356,7.5e-07,2]
[369056474,1751446277746,156.6373356,7.5e-07,2]
[369056475,1751446277849,156.6373356,7.5e-07,2]
[369056476,1751446277991,156.6373356,7.5e-07,2]
[369056477,1751446278089,156.6373356,7.5e-07,2]
[369056478,1751446278173,156.6373356,7.5e-07,2]
[369056479,1751446278286,156.6373356,7.5e-07,2]
[369056480,1751446278483,156.6373356,7.5e-07,2]
[369056481,1751446278578,156.6373356,7.5e-07,2]
[369056482,1751446282141,3055.65068806,0.000163,2]
[369056483,1751446282163,1944.34931194,0.000163,2]
[369056485,1751446290515,200.0,0.00026485,120]
[369056486,1751446298073,5000.0,0.000163,2]
[369056487,1751446316171,3055.65068806,0.000163,2]
[369056488,1751446316192,1944.34931194,0.000163,2]
[369056489,1751446333908,5000.0,0.000163,2]
[369056490,1751446349823,3055.65068806,0.000163,2]
[369056491,1751446349845,1944.34931194,0.000163,2]
[369056492,1751446350977,200.0,0.00023965,120]
[369056493,1751446365420,4000.0,0.00027397,120]
[369056494,1751446365739,5000.0,0.000163,2]
[369056495,1751446381861,3055.65068806,0.000163,2]
[369056496,1751446381883,1944.34931194,0.000163,2]
[369056497,1751446391766,1259.9345287,0.00015777,2]
[369056498,1751446397488,5000.0,0.000163,2]
[369056499,1751446411218,200.0,0.00025507,120]
[369056500,1751446414410,1795.71615936,0.000163,2]
[369056503,1751446470509,200.0,0.00024387,120]
[369056504,1751446481754,224.35742,0.00027397,120]
[369056505,1751446486414,4000.0,0.00027397,120]
[369056506,1751446530699,200.0,0.0002725,120]
[369056507,1751446543291,24900.0,0.00015415,2]
[369056508,1751446590579,200.0,0.00023944,120]
[369056509,1751446605279,5000.0,0.000161,2]
[369056510,1751446622623,57999.97,0.00027,120]
[369056511,1751446624354,5000.0,0.000161,2]
[369056512,1751446640247,5000.0,0.000161,2]
[369056514,1751446653297,200.0,0.0002562,120]
[369056515,1751446654219,485.898267,0.00013699,2]
[369056516,1751446655317,5000.0,0.000161,2]
[369056517,1751446673103,422.51342647,0.000161,2]
[369056518,1751446711364,200.0,0.00024446,120]
[369056519,1751446771264,200.0,0.00024563,120]
[369056520,1751446832124,200.0,0.00024271,120]
[369056521,1751446890751,200.0,0.00026261,120]
[369056522,1751447011027,200.0,0.00025081,120]
[369056523,1751447021558,300.860301,0.0001542,2]
[369056524,1751447060772,3331.225,0.00027397,120]
[369056525,1751447070737,200.0,0.00024663,120]
[369056526,1751447132136,200.0,0.00024253,120]
[369056527,1751447150707,7944.0174784,0.00015411,2]
[369056528,1751447183233,-181.9795373,0.00016237,2]
[369056529,1751447190721,200.0,0.00025853,120]
[369056530,1751447227712,1215.92,0.00024657,60]
[369056531,1751447250724,200.0,0.00026556,120]
[369056532,1751447311270,200.0,0.00024152,120]
[369056533,1751447334901,-167.18271929,0.000162,2]
[369056534,1751447334929,-31.74378586,0.00016237,2]
[369056537,1751447370735,200.0,0.00025138,120]
[369056804,1751447395367,213.23347281,0.00015848,2]
[369057073,1751447430747,200.0,0.00024459,120]
[369057105,1751447432218,-151.0,0.000163,2]
[369057106,1751447432227,-167.18271929,0.00016333,2]
[369057107,1751447432239,-300.84298201,0.00016338,2]
[369057108,1751447432248,-1651.53152066,0.00016338,2]
[369057109,1751447432258,-1200.0,0.00016433,2]
[369057111,1751447432271,-300.0,0.00016433,2]
[369057112,1751447432281,-300.0,0.00016433,2]
[369057113,1751447432290,-202.0,0.00016433,2]
[369057115,1751447432299,-500.0,0.00016433,2]
[369057116,1751447432309,-500.0,0.00016433,2]
[369057117,1751447432318,-500.0,0.00016433,2]
[369057119,1751447432328,-265.31383583,0.00016433,2]
[369057120,1751447432340,-234.68616417,0.00016433,2]
[369057122,1751447432350,-500.0,0.00016433,2]
[369057123,1751447432360,-177.67091505,0.00016433,2]
[369057124,1751447432370,-500.0,0.00016433,2]
[369057126,1751447432379,-500.0,0.00016433,2]
[369057127,1751447432389,-500.0,0.00016433,2]
[369057128,1751447432399,-500.0,0.00016433,2]
[369057130,1751447432408,-500.0,0.00016433,2]
[369057131,1751447432419,-500.0,0.00016433,2]
[369057132,1751447432428,-500.0,0.00016433,2]
[369057134,1751447432438,-500.0,0.00016433,2]
[369057135,1751447432448,-444.33860655,0.00016433,2]
[369057136,1751447432457,-500.0,0.00016433,2]
[369057138,1751447432467,-500.0,0.00016433,2]
[369057139,1751447432476,-500.0,0.00016433,2]
[369057140,1751447432486,-500.0,0.00016433,2]
[369057142,1751447432496,-500.0,0.00016433,2]
[369057143,1751447432505,-500.0,0.00016433,2]
[369057144,1751447432515,-409.79941717,0.00016433,2]
[369057146,1751447432524,-351.59675928,0.00016433,2]
[369057147,1751447432534,-250.0,0.00016433,2]
[369057148,1751447432544,-300.0,0.00016433,2]
[369057150,1751447432554,-500.0,0.00016433,2]
[369057151,1751447432563,-500.0,0.00016433,2]
[369057152,1751447432573,-1001.0,0.00016435,2]
[369057154,1751447432583,-6238.52926089,0.00016435,2]
[369057155,1751447432592,-328.27392864,0.00016437,2]
[369057156,1751447432603,-539.55630055,0.00016437,2]
[369057158,1751447432612,-786.27667684,0.00016437,2]
[369057159,1751447432623,-460.0,0.00016438,2]
[369057160,1751447432632,-460.0,0.00016438,2]
[369057162,1751447432642,-460.0,0.00016438,2]
[369057163,1751447432652,-460.0,0.00016438,2]
[369057165,1751447432661,-460.0,0.00016438,2]
[369057166,1751447432671,-461.49991213,0.00016438,2]
[369057167,1751447432680,-173.55992321,0.00016438,2]
[369057169,1751447432690,-217.82575703,0.00016438,2]
[369057170,1751447432700,-581.87,0.00016438,2]
[369057171,1751447432709,-460.0,0.00016438,2]
[369057173,1751447432719,-460.0,0.00016438,2]
[369057174,1751447432728,-460.0,0.00016438,2]
[369057175,1751447432738,-462.02124659,0.00016438,2]
[369057177,1751447432748,-368.97961122,0.00016438,2]
[369057178,1751447432758,-353.24325202,0.00016438,2]
[369057179,1751447432767,-460.0,0.00016438,2]
[369057181,1751447432777,-460.0,0.00016438,2]
[369057182,1751447432786,-460.0,0.00016438,2]
[369057183,1751447432796,-460.0,0.00016438,2]
[369057185,1751447432806,-460.0,0.00016438,2]
[369057186,1751447432815,-500.0,0.00016438,2]
[369057187,1751447432825,-500.0,0.00016438,2]
[369057189,1751447432834,-500.0,0.00016438,2]
[369057190,1751447432844,-478.12038186,0.00016438,2]
[369057192,1751447432853,-460.0,0.00016438,2]
[369057193,1751447432862,-460.0,0.00016438,2]
[369057194,1751447432872,-460.0,0.00016438,2]
[369057196,1751447432881,-460.0,0.00016438,2]
[369057197,1751447432890,-460.0,0.00016438,2]
[369057198,1751447432900,-460.0,0.00016438,2]
[369057200,1751447432910,-460.0,0.00016438,2]
[369057201,1751447432921,-460.0,0.00016438,2]
[369057202,1751447432930,-460.0,0.00016438,2]
[369057204,1751447432939,-460.9757821,0.00016438,2]
[369057205,1751447432948,-460.0,0.00016438,2]
[369057206,1751447432958,-460.0,0.00016438,2]
[369057207,1751447432967,-536.8634431,0.00016438,2]
[369057208,1751447432976,-460.0,0.00016438,2]
[369057209,1751447432986,-460.0,0.00016438,2]
[369057210,1751447432995,-460.0,0.00016438,2]
[369057211,1751447433004,-460.0,0.00016438,2]
[369057212,1751447433014,-460.0,0.00016438,2]
[369057213,1751447433024,-460.0,0.00016438,2]
[369057214,1751447433034,-462.69084439,0.00016438,2]
[369057215,1751447433045,-460.0,0.00016438,2]
[369057216,1751447433056,-460.0,0.00016438,2]
[369057217,1751447433066,-288.66370455,0.00016438,2]
[369057218,1751447433076,-460.0,0.00016438,2]
[369057219,1751447433085,-460.0,0.00016438,2]
[369057220,1751447433095,-505.80399705,0.00016438,2]
[369057221,1751447433105,-460.0,0.00016438,2]
[369057222,1751447433114,-460.0,0.00016438,2]
[369057223,1751447433123,-460.0,0.00016438,2]
[369057224,1751447433326,-453.57560363,0.00016438,2]
[369057225,1751447433336,-460.0,0.00016438,2]
[369057226,1751447433345,-460.0,0.00016438,2]
[369057227,1751447433355,-460.0,0.00016438,2]
[369057228,1751447433365,-460.0,0.00016438,2]
[369057229,1751447433375,-460.0,0.00016438,2]
[369057230,1751447433384,-460.0,0.00016438,2]
[369057231,1751447433393,-460.0,0.00016438,2]
[369057232,1751447433402,-461.22185859,0.00016438,2]
[369057233,1751447433411,-460.0,0.00016438,2]
[369057234,1751447433420,-460.0,0.00016438,2]
[369057235,1751447433430,-460.0,0.00016438,2]
[369057236,1751447433439,-464.01989695,0.00016438,2]
[369057237,1751447433448,-460.0,0.00016438,2]
[369057238,1751447433458,-460.0,0.00016438,2]
[369057239,1751447433467,-460.0,0.00016438,2]
[369057240,1751447433476,-460.0,0.00016438,2]
[369057241,1751447433486,-163.6692967,0.00016438,2]
[369057244,1751447438248,-500.0,0.00016433,2]
[369057245,1751447438258,-500.0,0.00016433,2]
[369057246,1751447438269,-500.0,0.00016433,2]
[369057247,1751447438278,-296.3307033,0.00016438,2]
[369057248,1751447438288,-460.52895136,0.00016438,2]
[369057249,1751447438297,-460.0,0.00016438,2]
[369057250,1751447438306,-460.0,0.00016438,2]
[369057251,1751447438315,-460.0,0.00016438,2]
[369057252,1751447438325,-460.0,0.00016438,2]
[369057253,1751447438334,-460.0,0.00016438,2]
[369057254,1751447438343,-460.0,0.00016438,2]
[369057255,1751447438353,-476.3,0.00016438,2]
[369057256,1751447438363,-460.0,0.00016438,2]
[369057257,1751447438372,-460.0,0.00016438,2]
[369057258,1751447438382,-399.65884183,0.00016438,2]
[369057259,1751447438405,-61.17170054,0.00016438,2]
[369057260,1751447438414,-460.0,0.00016438,2]
[369057261,1751447438424,-460.0,0.00016438,2]
[369057262,1751447438433,-460.0,0.00016438,2]
[369057263,1751447438443,-460.0,0.00016438,2]
[369057264,1751447438452,-460.0,0.00016438,2]
[369057265,1751447438462,-460.0,0.00016438,2]
[369057266,1751447438471,-460.0,0.00016438,2]
[369057267,1751447438480,-460.0,0.00016438,2]
[369057268,1751447438489,-171.63556201,0.00016438,2]
[369057269,1751447438499,-460.0,0.00016438,2]
[369057270,1751447438508,-460.0,0.00016438,2]
[369057271,1751447438518,-460.0,0.00016438,2]
[369057272,1751447438527,-460.0,0.00016438,2]
[369057273,1751447438537,-266.30102736,0.00016438,2]
[369057274,1751447438546,-517.33786576,0.00016438,2]
[369057275,1751447438556,-443.87033446,0.00016438,2]
[369057276,1751447438565,-460.0,0.00016438,2]
[369057277,1751447438575,-460.0,0.00016438,2]
[369057278,1751447438585,-460.0,0.00016438,2]
[369057279,1751447438595,-460.0,0.00016438,2]
[369057280,1751447438605,-565.37,0.00016438,2]
[369057281,1751447438615,-265.24894632,0.00016438,2]
[369057282,1751447438625,-460.0,0.00016438,2]
[369057283,1751447438634,-460.0,0.00016438,2]
[369057284,1751447438643,-460.0,0.00016438,2]
[369057285,1751447438652,-460.0,0.00016438,2]
[369057286,1751447438661,-460.0,0.00016438,2]
[369057287,1751447438671,-460.0,0.00016438,2]
[369057288,1751447438680,-460.0,0.00016438,2]
[369057289,1751447438689,-411.23639041,0.00016438,2]
[369057290,1751447438699,-465.08229739,0.00016438,2]
[369057291,1751447438708,-460.0,0.00016438,2]
[369057292,1751447438718,-460.0,0.00016438,2]
[369057293,1751447438727,-237.38976658,0.00016438,2]
[369057294,1751447438737,-460.0,0.00016438,2]
[369057295,1751447438746,-460.0,0.00016438,2]
[369057296,1751447438756,-460.0,0.00016438,2]
[369057297,1751447438765,-460.0,0.00016438,2]
[369057298,1751447438774,-453.10817735,0.00016438,2]
[369057299,1751447438783,-460.0,0.00016438,2]
[369057300,1751447438793,-460.0,0.00016438,2]
[369057301,1751447438802,-460.0,0.00016438,2]
[369057302,1751447438811,-460.0,0.00016438,2]
[369057303,1751447438821,-460.0,0.00016438,2]
[369057304,1751447438830,-460.0,0.00016438,2]
[369057305,1751447438839,-460.0,0.00016438,2]